[Event "Sautron op 15th"]
[Site "Sautron"]
[Date "2015.10.24"]
[Round "8.1"]
[White "Duboue, Peio"]
[Black "Zubarev, Alexander2"]
[Result "0-1"]
[ECO "B07"]
[WhiteElo "2368"]
[BlackElo "2542"]
[Annotator "RR"]
[PlyCount "106"]
[EventDate "2015.10.24"]
[EventType "swiss"]
[EventRounds "9"]
[EventCountry "FRA"]
[SourceTitle "CBM 169 Extra"]
[Source "ChessBase"]
[SourceDate "2015.12.18"]
[SourceVersion "1"]
[SourceVersionDate "2015.12.18"]
[SourceQuality "1"]
[TimeControl "40/5400+30:1800+30"]
[WhiteClock "0:09:05"]
[BlackClock "0:10:52"]

1. e4 {[%emt 0:00:00]} d6 {[%emt 0:00:00]} 2. d4 {[%emt 0:00:00]} Nf6 {[%emt 0:
00:00]} 3. Nc3 {[%emt 0:00:02]} g6 {[%emt 0:00:00]} 4. f3 {[%emt 0:01:28]} c6 {
[%emt 0:00:34]} 5. a4 {[%emt 0:02:46]} Nbd7 {[%emt 0:00:49]} 6. Bc4 $6 {
[%emt 0:01:30] Après la poussée c6, le Bc4 est assez mal placé} (6. Be3 $142
Bg7 7. Qd2 O-O) 6... Bg7 {[%emt 0:05:27]} 7. Nge2 {[%emt 0:03:12]} O-O {
[%emt 0:01:01]} 8. Be3 {[%emt 0:00:25]} d5 $1 {[%emt 0:00:17]} (8... e5 9. Qd2)
9. Bb3 {[%emt 0:02:34]} dxe4 {[%emt 0:05:36]} 10. fxe4 {[%emt 0:01:38]} e5 {
[%emt 0:06:35]} 11. d5 {[%emt 0:05:20]} (11. h3 exd4 12. Bxd4 Qe7 13. Ng3 Nc5
14. Bxc5 Qxc5 15. Qd2 Qe5 16. Qf2 Be6 17. Bxe6 fxe6 18. O-O Nh5 {0-1 (18)
Airapetian,C (2180)-Burnett,R (2376) Stillwater 2007}) 11... Ng4 $1 {[%emt 0:
07:01][%csl Re1,Re3] Gagne un tempo important et le retard de développement
des Blancs devient critique} 12. Bg1 {[%emt 0:01:15]} Qh4+ {[%emt 0:05:13]} 13.
Ng3 {[%emt 0:00:27]} Ndf6 $32 {[%emt 0:01:58]} 14. Qf3 {[%emt 0:10:30][%cal
Ge1c1]} Bh6 $1 {[%emt 0:33:37][%csl Re1] Après une longue réflexion, les
Noirs empêchent le ooo des Blancs} 15. h3 {[%emt 0:11:21]} Bf4 $1 $40 {
[%emt 0:02:12]} 16. Nce2 {[%emt 0:01:31]} Nxe4 $1 {[%emt 0:09:25]} 17. hxg4 {
[%emt 0:00:13]} Bxg3+ {[%emt 0:00:17]} 18. Nxg3 {[%emt 0:00:04]} Qxg3+ {
[%emt 0:00:09]} 19. Qxg3 {[%emt 0:00:03]} Nxg3 {[%emt 0:00:07]} 20. Rh3 {
[%emt 0:00:04]} Ne4 {[%emt 0:00:35]} 21. dxc6 {[%emt 0:01:02]} bxc6 {[%emt 0:
00:19]} 22. Re3 {[%emt 0:00:52]} Nc5 {[%emt 0:01:15]} 23. Bc4 {[%emt 0:00:03]}
(23. Rxe5 Nxb3 24. cxb3 Bxg4) 23... Bxg4 {[%emt 0:03:53]} 24. Rg3 {[%emt 0:02:
10]} Be6 $1 {[%emt 0:00:06]} 25. Bxc5 {[%emt 0:00:05]} Bxc4 {[%emt 0:00:05]}
26. Bxf8 {[%emt 0:00:03]} Kxf8 {[%emt 0:00:15]} 27. Re3 {[%emt 0:01:16]} f6 {
[%emt 0:02:48]} 28. g4 {[%emt 0:02:44]} Be6 {[%emt 0:06:47]} 29. g5 {[%emt 0:
00:28]} fxg5 {[%emt 0:01:47]} 30. Rxe5 {[%emt 0:00:06]} Bf5 $13 {[%emt 0:00:06]
[%csl Gh7] La majorité Noire est trés forte mais tant qu'elle n'a pas
avancé, la qualité des Blancs doit donner assez de contre-jeu} 31. b4 {
[%emt 0:06:18]} (31. Rd1 Rb8) 31... h5 {[%emt 0:03:23]} 32. b5 {[%emt 0:03:54]}
g4 $15 {[%emt 0:01:45][%csl Gg4]} 33. bxc6 {[%emt 0:00:52]} (33. Kf2 h4 34. Rh1
h3 35. bxc6 Rc8 36. Rc5 Be4 37. Rh2 (37. Re1 $2 h2)) 33... Rc8 {[%emt 0:00:21]}
34. Rc5 {[%emt 0:01:05]} g3 {[%emt 0:01:02]} 35. Ke2 {[%emt 0:07:21]} Ke7 {
[%emt 0:00:48]} 36. Kf3 {[%emt 0:04:47]} h4 {[%emt 0:00:50]} 37. Rh1 {[%emt 0:
09:56]} Rh8 {[%emt 0:00:59]} 38. Ra5 {[%emt 0:00:10]} (38. Kf4 $2 g2) 38... Kd6
{[%emt 0:00:28]} 39. Rxa7 {[%emt 0:00:47]} Be6 {[%emt 0:00:28]} 40. Rd1+ {
[%emt 0:00:00]} Kc5 {[%emt 0:00:00]} 41. Ra5+ {[%emt 0:18:36] Le contrôle de
temps est passé et les Blancs ont réfléchi longtemps sur cette position
pour trouver un plan} Kb6 {[%emt 0:01:16] une jolie manoeuvre du K Noir qui
contourne le P"c6"} 42. Rg5 $2 {[%emt 0:00:08] joué à tempo mais les Blancs
ont oublié Bf5} Rf8+ {[%emt 0:05:44]} 43. Ke3 {[%emt 0:00:59]} Bf5 $19 {
[%emt 0:01:29][%csl Rg5] Enfermant la R} 44. a5+ {[%emt 0:09:58]} Kxc6 {
[%emt 0:02:44]} 45. c4 {[%emt 0:00:37]} Re8+ {[%emt 0:08:28]} 46. Kf3 {[%emt 0:
00:21]} Re5 {[%emt 0:02:52]} 47. Rxf5 {[%emt 0:11:01]} gxf5 {[%emt 0:00:24]}
48. a6 {[%emt 0:04:50]} Ra5 {[%emt 0:02:22]} 49. Rh1 {[%emt 0:00:38]} Ra3+ {
[%emt 0:00:39]} 50. Kg2 {[%emt 0:00:09]} Ra2+ {[%emt 0:00:19]} 51. Kh3 {
[%emt 0:00:31]} f4 {[%emt 0:00:10]} 52. a7 {[%emt 0:01:01]} Rxa7 {[%emt 0:00:
14]} 53. Rf1 {[%emt 0:00:14]} Rg7 {[%emt 0:00:39]} 0-1

[Event "Sautron op 13th"]
[Site "Sautron"]
[Date "2013.11.02"]
[Round "9"]
[White "Kasparov, Sergey"]
[Black "Lejarre, Ludovic"]
[Result "1/2-1/2"]
[ECO "B07"]
[WhiteElo "2480"]
[BlackElo "2371"]
[Annotator "RR"]
[PlyCount "100"]
[EventDate "2013.10.26"]
[EventType "swiss"]
[EventRounds "9"]
[EventCountry "FRA"]
[SourceTitle "EXT 2016"]
[Source "ChessBase"]
[SourceDate "2015.10.08"]
[SourceVersion "1"]
[SourceVersionDate "2015.10.08"]
[SourceQuality "1"]
[TimeControl "6000+1640"]
[WhiteClock "0:16:48"]
[BlackClock "0:14:34"]

1. d4 Nf6 2. Nf3 g6 3. g3 Bg7 4. Bg2 O-O 5. O-O d6 6. Re1 (6. c4 {Aurait
transposé dans une Est-Indienne}) 6... Nbd7 7. e4 e5 8. Nc3 c6 9. a4 (9. h3 b5
) 9... Qc7 10. h3 b6 11. Be3 a6 (11... Bb7 12. Qd2 Rfe8 13. Rad1 Rad8 14. Bh6
a6 15. Bxg7 Kxg7 16. Qe3 b5 17. dxe5 dxe5 18. axb5 axb5 19. b3 h6 20. Rd2 b4
21. Na4 c5 22. Nh2 c4 23. bxc4 Qxc4 24. Qb3 Rc8 25. Qxc4 Rxc4 26. Nb2 Rc3 27.
Nd3 Nc5 28. Nxc5 Rxc5 29. f3 Rec8 30. Rb1 Rxc2 31. Rxc2 Rxc2 32. Rxb4 Ba6 33.
Bf1 Rc1 34. Kg2 Rc2+ 35. Kg1 Rc1 {1/2-1/2 (35) Karpov,A (2619)-Tkachiev,V 
(2642) Moscow 2009}) (11... Re8) 12. Qd2 Bb7 {La position Noire est un peu
passive mais aussi trés solide} 13. Bh6 b5 (13... Rfe8 14. Bxg7 Kxg7 15. Rad1
$14) 14. Bxg7 Kxg7 15. Rad1 Rfe8 16. Nh4 {[%csl Gf5][%cal Gd2g5]} h6 (16... b4
17. Ne2 c5 18. d5 h6 19. c4) 17. f4 $146 (17. Kh2 Nf8 18. Ne2 Rad8 19. axb5
cxb5 20. Nc3 Rc8 21. Rc1 Qb6 22. dxe5 dxe5 23. Nd5 Qd6 24. Rcd1 Nxd5 25. exd5
Nd7 26. b3 b4 27. Re4 a5 28. Rg4 Kh7 29. Be4 Nf6 30. Rxg6 fxg6 31. Bxg6+ Kg8
32. Qxh6 Rc7 33. Nf5 Qc5 34. Rd2 Rf8 35. Qg5 Kh8 {1/2-1/2 (35) Fries Nielsen,J
(2444)-Gallagher,J (2540) Stockholm 2002}) 17... Rad8 18. Qf2 {Les Blancs ont
un bon avantage d'espace mais la position n'est pas facile à améliorer} exd4
$5 {Abandonne le centre mais profite du fait que les Blancs ont joué Qf2 au
coup précédent pour forcer l'échange des Q par Qb6} 19. Qxd4 Qb6 $11 20.
Qxb6 Nxb6 21. axb5 (21. a5 $5 Nc8 (21... Nc4 22. b3 Nxa5 23. Ra1) 22. g4 d5 23.
e5 Nd7 24. b4 $14 {[%csl Rb7]}) 21... axb5 22. e5 dxe5 23. fxe5 Nh5 24. Rxd8
Rxd8 25. e6 (25. Nxb5 cxb5 26. Bxb7 Nxg3 27. Kf2 Nh5 28. Nf3 $11) 25... Re8 (
25... fxe6 $6 26. Rxe6 {[%csl Rc6,Rg6]}) 26. Nxb5 cxb5 27. Bxb7 Rxe6 28. Rxe6
fxe6 29. Kf2 Nc4 30. b3 Nd6 31. Bc6 Kf6 32. Nf3 e5 {(=)} (32... b4 {[%csl Rc2]}
33. Ne1 {[%cal Ge1d3,Gd3b4]} Ke5 $1 34. Nd3+ Kd4 35. Nxb4 Kc3 $132 {[%cal
Gc3b4,Gc3c2]}) 33. Nd2 Ke6 34. Nb1 b4 35. c3 bxc3 36. Nxc3 Nf6 37. b4 (37. Ke3
Nf5+) 37... Nf5 38. b5 Nd4 {[%csl Gd4]} 39. Bg2 Nd7 {[%csl Gb6]} 40. h4 Nb6 41.
Be4 g5 42. hxg5 {Après cet échange, la nulle est quasi forcée} hxg5 43. Bd3
g4 44. Ne4 Kd5 45. Nf6+ Kc5 46. Ke3 Nxb5 47. Nxg4 Nd6 48. Nxe5 Nd5+ 49. Ke2 Nf6
50. Bg6 Kd5 1/2-1/2

[Event "Sautron op 13th"]
[Site "Sautron"]
[Date "2013.10.28"]
[Round "4"]
[White "Terrieux, Kevin"]
[Black "Le Roux, Jean Pierre"]
[Result "1/2-1/2"]
[ECO "B07"]
[WhiteElo "2415"]
[BlackElo "2571"]
[Annotator "RR"]
[PlyCount "61"]
[EventDate "2013.10.26"]
[EventType "swiss"]
[EventRounds "9"]
[EventCountry "FRA"]
[SourceTitle "EXT 2016"]
[Source "ChessBase"]
[SourceDate "2015.10.08"]
[SourceVersion "1"]
[SourceVersionDate "2015.10.08"]
[SourceQuality "1"]
[TimeControl "40/5400+30:1800+30"]
[WhiteClock "1:30:00"]
[BlackClock "1:30:00"]

1. d4 d6 {[%emt 0:00:22]} 2. e4 {[%emt 0:00:02]} Nf6 {[%emt 0:03:26]} 3. Nc3 {
[%emt 0:00:28]} g6 {[%emt 0:01:23]} 4. Be3 {[%emt 0:00:48]} a6 {[%emt 0:01:25]}
(4... Bg7) (4... c6) 5. h3 {[%emt 0:07:40]} (5. f3) (5. Qd2) 5... Bg7 {[%emt 0:
04:24]} 6. e5 $5 {[%emt 0:13:08] Une ligne secondaire} (6. Bd3 O-O 7. Qd2 Nc6
8. Nf3 e5 9. dxe5 Nxe5 10. Nxe5 dxe5 11. Bh6 Be6 12. O-O-O Nh5 13. g3 Bxh6 14.
Qxh6 Qf6 15. Qe3 Rad8 16. Be2 Ng7 17. f4 c6 18. Rdf1 exf4 19. gxf4 Qd4 20. Qg3
b5 21. f5 Bc4 22. Rd1 Qc5 23. Bxc4 Qxc4 24. Rxd8 Rxd8 25. Qc7 Rf8 26. a3 Qc5
27. Kb1 gxf5 28. exf5 Nxf5 29. Ne4 Qd4 30. Qf4 Re8 31. Qg5+ Kf8 32. Nf6 Re5 33.
Nxh7+ Ke8 34. Nf6+ Kf8 35. Rf1 c5 {Nepomniachtchi,I (2717)-Grischuk,A (2779)
Khanty-Mansiysk 2013 1-0}) (6. a4) (6. Nf3) (6. f4) 6... Nfd7 {[%emt 0:03:36]}
7. exd6 $146 {[%emt 0:02:09]} (7. f4 c5 8. Nf3 O-O 9. Bc4 cxd4 10. Bxd4 dxe5
11. fxe5 e6 12. O-O Nc6 13. Bb3 Nxd4 14. Qxd4 Nxe5 15. Qe4 Nxf3+ 16. Rxf3 Qd4+
17. Qxd4 Bxd4+ 18. Kh1 b5 19. Rd1 Bg7 20. Rfd3 Bb7 21. Kg1 Rac8 22. Rd6 Bxc3
23. bxc3 Rxc3 24. Rd7 Be4 25. Ra7 Bxc2 26. Rc1 Rfc8 27. Rf1 R8c7 28. Rxc7 Rxc7
29. Rc1 Bxb3 30. Rxc7 Bxa2 31. Ra7 b4 32. Rxa6 Bd5 33. Rb6 b3 34. Kf2 g5 35. g3
Kg7 36. Ke3 Kf6 {Kerigan,D (2134)-Shimanov,A (2583) Konya 2011 0-1}) (7. e6 $5
$146 {Un peu bizarre puisque les Blancs ont joué Be3 avant Nf3 maic c'est
peut-être jouable} fxe6 8. Nf3 O-O 9. Ng5 Nf6 10. Bc4 d5 11. Bb3 b5 12. O-O
Nc6 13. Qd2 Bd7 14. Rae1 $44) 7... cxd6 {[%emt 0:03:47]} 8. Nf3 {[%emt 0:03:06]
} b5 {[%emt 0:05:59]} 9. Bd3 {[%emt 0:06:28]} Bb7 {[%emt 0:02:08]} 10. Qd2 {
[%emt 0:13:40]} Nf6 {[%emt 0:10:09]} (10... O-O 11. Bh6) 11. a4 {[%emt 0:06:18]
} Nbd7 {[%emt 0:08:46]} 12. axb5 {[%emt 0:04:01]} axb5 {[%emt 0:00:04]} 13. O-O
{[%emt 0:01:12]} b4 {[%emt 0:01:09]} 14. Ne2 {[%emt 0:00:54]} Rb8 {[%emt 0:05:
41]} (14... Bxf3 $5 {Un coup naturel qui donne une position solide au GMI mais
la paire de B peut-être utile dans cette position relativement ouverte.} 15.
gxf3 Nd5 $11) 15. Ne1 {[%emt 0:05:18]} O-O {[%emt 0:01:33]} 16. f4 {[%emt 0:09:
04][%csl Re3]} (16. Ra4 $5 {[%cal Ga4b4]} Nd5 $11) 16... Nd5 {[%emt 0:05:02]}
17. f5 {[%emt 0:02:17]} Nxe3 {[%emt 0:02:25]} 18. Qxe3 {[%emt 0:00:06]} Nf6 {
[%emt 0:01:14]} 19. Nf3 {[%emt 0:01:54]} Nd5 {[%emt 0:02:07]} 20. Qd2 {[%emt 0:
00:26]} Qb6 {[%emt 0:08:07]} 21. Kh1 {[%emt 0:00:44]} (21. Kh2) 21... Nf6 {
[%emt 0:03:38]} (21... b3 22. c4 Nb4 23. Bb1 Ba6 {[%csl Rc4][%cal Gf8c8,Gb8c8]}
(23... Ra8)) 22. Qe3 {[%emt 0:01:41]} Rbe8 {[%emt 0:02:50]} 23. Qf2 {[%emt 0:
07:25]} e6 {[%emt 0:02:18]} 24. fxg6 {[%emt 0:01:41]} fxg6 {[%emt 0:00:38]} 25.
Qh4 {[%emt 0:00:56]} Nh5 {[%emt 0:01:34]} 26. Ng5 {[%emt 0:00:58]} Qd8 {
[%emt 0:04:52]} 27. Qg4 {[%emt 0:02:55]} Nf6 {[%emt 0:03:20]} 28. Qg3 {[%emt 0:
00:35]} Nh5 {[%emt 0:02:00]} 29. Qg4 {[%emt 0:00:10]} Nf6 {[%emt 0:00:53]} 30.
Qg3 {[%emt 0:00:01]} Nh5 {[%emt 0:00:48]} 31. Qg4 {[%emt 0:00:15]} 1/2-1/2

[Event "Sautron op 15th"]
[Site "Sautron"]
[Date "2015.10.24"]
[Round "4.4"]
[White "Bedouin, Xavier"]
[Black "Bailet, Pierre"]
[Result "0-1"]
[ECO "B07"]
[WhiteElo "2334"]
[BlackElo "2515"]
[Annotator "RR"]
[PlyCount "86"]
[EventDate "2015.10.24"]
[EventType "swiss"]
[EventRounds "9"]
[EventCountry "FRA"]
[SourceTitle "CBM 169 Extra"]
[Source "ChessBase"]
[SourceDate "2015.12.18"]
[SourceVersion "1"]
[SourceVersionDate "2015.12.18"]
[SourceQuality "1"]
[TimeControl "40/5400+30:1800+30"]
[WhiteClock "0:22:40"]
[BlackClock "0:28:38"]

1. e4 {[%emt 0:00:00]} g6 {[%emt 0:00:22]} 2. d4 {[%emt 0:00:20]} Bg7 {[%emt 0:
00:11]} 3. Nf3 {[%emt 0:00:16]} d6 {[%emt 0:00:32]} 4. c3 {[%emt 0:00:54] Une
suite solide} Nf6 {[%emt 0:00:40]} 5. Bd3 {[%emt 0:00:21]} O-O {[%emt 0:00:21]}
6. O-O {[%emt 0:00:30]} Nc6 {[%emt 0:05:52]} (6... c5) (6... Nbd7) 7. h3 {
[%emt 0:05:09]} (7. Re1 e5 8. h3 Re8 9. d5 $14) (7. d5 Nb8 8. c4 (8. h3)) 7...
e5 {[%emt 0:00:32]} (7... Nd7 $5) 8. dxe5 {[%emt 0:00:39]} Nxe5 {[%emt 0:04:37]
} (8... dxe5 {Plus courant} 9. Na3 h6 10. Re1 Nh5 11. Bf1 Qf6 {[%cal Gc8h3,
Gh5f4]} 12. g3 Rd8 $132 {Pakleza,Z (2515)-Heberla,B (2556) POL-chT Poland 2015
(4.5) 1-0}) 9. Nxe5 {[%emt 0:00:34]} dxe5 {[%emt 0:00:07]} 10. Qe2 {[%emt 0:00:
56]} (10. Qf3) (10. Bg5) 10... Nh5 {[%emt 0:06:49][%csl Gf4]} (10... c6) 11.
Na3 $146 {[%emt 0:05:11]} (11. Bc4 Qh4 12. Na3 a6 13. Nc2 Kh8 14. Ne1 h6 15.
Nf3 Qe7 16. Re1 Bd7 17. Bd2 Rfd8 18. Rad1 Ba4 19. b3 Be8 20. Bc1 b5 21. Bd3 c5
22. Bc2 Bc6 23. Rxd8+ Rxd8 24. g3 Nf6 25. Kh2 Kg8 26. Nh4 Qc7 27. Qe3 Bf8 28.
Nf3 Bb7 29. Ng1 a5 30. f3 c4 31. Rd1 Rxd1 32. Bxd1 cxb3 33. axb3 Qc6 34. Qd3
Nd7 35. Be3 a4 36. b4 g5 37. Bc2 Nb6 38. Bxb6 Qxb6 39. Kg2 Bc8 40. Bb1 Be6 {
Nun,J (2382)-Krasenkow,M (2647) Germany 2006 0-1}) 11... Qe7 {[%emt 0:07:58]}
12. Bc4 {[%emt 0:03:42]} (12. Nc4 Bd7 13. Ne3 Nf4 $132 14. Qf3 Qf6 (14... Rad8
15. Nd5 Nxd5 16. exd5 f5 17. Bc4 Qc5 18. Bb3 Kh8 $11) 15. Ng4) 12... Bd7 {
[%emt 0:07:54]} 13. Rd1 {[%emt 0:08:56]} Rad8 $32 {[%emt 0:04:32]} 14. Nc2 {
[%emt 0:09:29] Ce plan est un peu trop lent} Bc8 $1 $11 {[%emt 0:08:38]} 15.
Be3 {[%emt 0:02:17]} Nf4 $132 {[%emt 0:06:09] Les pièces Noires sont
nettement mieux coordonnées} 16. Qf3 {[%emt 0:04:28]} Qf6 {[%emt 0:06:02]} 17.
Kh2 {[%emt 0:00:25]} a5 {[%emt 0:03:04]} 18. a4 {[%emt 0:11:35]} (18. Bf1) (18.
Bc5 Rxd1 19. Rxd1 Rd8 20. Bf1 {[%cal Gc2e3]}) 18... h5 {[%emt 0:03:16]} 19. Bc5
$1 {[%emt 0:20:28] Après une longue réflexion, les Blancs trouvent un bon
coup pour résoudre un peu les problèmes de développement} Rxd1 {[%emt 0:05:
05]} 20. Rxd1 {[%emt 0:02:31]} Rd8 $1 {[%emt 0:01:49]} 21. Rxd8+ {[%emt 0:07:
49]} Qxd8 {[%emt 0:00:09]} 22. Be3 {[%emt 0:00:39]} Qe7 $1 {[%emt 0:05:03]} 23.
Qd1 {[%emt 0:02:42]} (23. Bxf4 exf4 24. Qxf4 Be5) 23... Bd7 $1 {[%emt 0:03:33]
[%csl Ra4] Un coup simple mais pas si facile à parer pour les Blancs} 24. Bb5
{[%emt 0:03:35]} Be6 $1 {[%emt 0:03:00][%csl Rb5][%cal Gc7c6,Ge6b3]} 25. Na3 {
[%emt 0:01:16] La nouveauté Na3 n'était pas très heureuse et sans être en
danger, les Blancs ont des petits problèmes pour garder l'égalité} Kh7 {
[%emt 0:02:52]} 26. Bf1 $1 {[%emt 0:00:45][%cal Gf1h3,Gg2g3]} Bd7 {[%emt 0:01:
34]} 27. g3 {[%emt 0:01:19]} Ne6 {[%emt 0:00:17]} 28. h4 {[%emt 0:00:43]} (28.
Nb5 $5 c6 29. Nd6 Bf8 30. Nc4) 28... Bc6 {[%emt 0:00:29]} 29. f3 {[%emt 0:01:
02]} Bh6 $1 {[%emt 0:05:32] Après le coup f3, cet échange est
particulièrement avantageux pour les Noirs} 30. Bxh6 {[%emt 0:01:27]} (30. Bf2
Qd7 {[%csl Ra4]} 31. Qxd7 Bxd7 32. Bb5) 30... Kxh6 {[%emt 0:00:05]} 31. Bb5 {
[%emt 0:01:11]} Qc5 {[%emt 0:01:35]} 32. Qd2+ {[%emt 0:03:03]} Kg7 {[%emt 0:00:
18]} 33. Kg2 {[%emt 0:00:55]} Bxb5 $1 {[%emt 0:01:58]} 34. Nxb5 {[%emt 0:01:06]
} Qc4 {[%emt 0:00:38]} 35. Qd1 {[%emt 0:00:17]} Nc5 $36 {[%emt 0:02:17][%csl
Ra4,Rb5,Gc5][%cal Gc5a4,Gc5d3,Gc5b3]} 36. Nxc7 {[%emt 0:00:24]} Nxa4 {[%emt 0:
01:53]} 37. Ne8+ {[%emt 0:00:51]} Kf8 {[%emt 0:00:16]} 38. Nd6 {[%emt 0:00:21]}
Qc6 $17 {[%emt 0:01:20]} 39. Qb3 {[%emt 0:00:42]} Qxd6 {[%emt 0:00:33]} 40.
Qxa4 {[%emt 0:00:00]} Qd2+ {[%emt 0:00:00]} 41. Kh3 {[%emt 0:06:59]} Qc1 {
[%emt 0:03:06]} 42. Qa3+ {[%emt 0:00:35]} Kg7 {[%emt 0:00:23]} 43. g4 $2 {
[%emt 0:02:28]} hxg4+ {[%emt 0:01:31]} (43... hxg4+ 44. fxg4 Qf1+ (44... Qf4
45. Qxa5 Qf3+ 46. Kh2) 45. Kg3 Qf4+ 46. Kh3 Qf3+ 47. Kh2 Qxg4 {[%cal Gg4h4]}
48. Qxa5 Qxh4+ {[%cal Gg6g3]} 49. Kg2 Qg5+ 50. Kf2 Qf4+ 51. Ke2 g5) 0-1

[Event "Plancoet op-A 10th"]
[Site "Plancoet"]
[Date "2013.08.01"]
[Round "6"]
[White "Bryzgalin, Kirill"]
[Black "Konguvel, Ponnuswamy"]
[Result "1/2-1/2"]
[ECO "B07"]
[WhiteElo "2470"]
[BlackElo "2319"]
[Annotator "RR"]
[PlyCount "81"]
[EventDate "2013.07.28"]
[EventType "swiss"]
[EventRounds "9"]
[EventCountry "FRA"]
[SourceTitle "EXT 2017"]
[Source "ChessBase"]
[SourceDate "2016.10.25"]
[SourceVersion "1"]
[SourceVersionDate "2016.10.25"]
[SourceQuality "1"]
[TimeControl "40/5400+30:1800+30"]

1. d4 Nf6 2. Nf3 g6 3. Nbd2 Bg7 4. e4 d6 5. Bd3 O-O 6. O-O c5 7. c3 cxd4 8.
cxd4 Nc6 9. d5 (9. h3 e5 10. d5 Nb4 11. Bb1 a5 12. Ne1 Nh5 13. a3 {1/2-1/2 (13)
Bryzgalin,K (2490)-Seger,R (2378) Pardubice 2012}) 9... Nb4 10. Bc4 a5 11. Re1
Bd7 12. a3 Na6 13. h3 $146 (13. Nb3 Ba4 14. Qe2 Bxb3 15. Bxb3 Nc5 16. Bc2 Nfd7
17. Rb1 a4 18. Be3 Qa5 19. h4 h5 20. Ng5 Qa6 21. Qd1 Qc4 22. Nf3 Rfc8 23. Bd4
Ne5 24. Nxe5 Bxe5 25. Bxe5 dxe5 26. Qd2 Kg7 27. Rbd1 Rc7 28. Re3 Rac8 29. Rc3
Qb5 30. Rb1 Nd7 31. Qd1 Nc5 32. g4 hxg4 33. Qxg4 Nb3 34. Bxb3 Rxc3 35. Bc2 {
1-0 (35) Meduna,E (2485)-Jirovsky,P (2245) Prague 1994}) 13... Nc5 14. e5 dxe5
15. Nxe5 Ba4 16. Qf3 Qd6 17. Nf1 Nfd7 18. Nxd7 Nxd7 19. Bf4 Qf6 20. b3 b5 21.
Be2 Bxb3 $132 22. Bxb5 Nb6 23. Qxb3 Qxf4 24. Rad1 a4 25. Qa2 Nc8 26. Qc2 Nd6
$11 27. Bc6 Ra7 28. Qc5 Nc8 29. Rd3 Qc7 30. Rb1 Nd6 31. Qb4 Qc8 32. Ne3 Qa6 33.
Rdd1 Rd8 34. g3 h5 35. h4 Bh6 36. Qd4 Bg7 37. Qd3 Qxd3 38. Rxd3 Ne4 39. Rb4 Nc5
40. Rd1 Be5 41. Kf1 1/2-1/2

[Event "Tata Steel-B 79th"]
[Site "Wijk aan Zee"]
[Date "2017.01.24"]
[Round "9"]
[White "Van Foreest, Jorden"]
[Black "Smirin, Ilia"]
[Result "0-1"]
[ECO "B07"]
[WhiteElo "2612"]
[BlackElo "2667"]
[Annotator "Ramirez Alvarez,A"]
[PlyCount "110"]
[EventDate "2017.01.14"]
[EventType "tourn"]
[EventRounds "13"]
[EventCountry "NED"]
[EventCategory "14"]
[SourceTitle "CBM 177"]
[Source "ChessBase"]
[SourceDate "2017.03.16"]
[SourceVersion "1"]
[SourceVersionDate "2017.03.16"]
[SourceQuality "1"]
[TimeControl "40/6000+30:20/3000+30:900+30"]

1. d4 {[%emt 0:00:00]} g6 {[%emt 0:00:16]} 2. e4 {[%emt 0:00:00]} Bg7 {[%emt 0:
00:05]} 3. Nc3 {[%emt 0:00:32]} d6 {[%emt 0:00:20]} 4. Be3 {[%emt 0:00:09]} a6
{[%emt 0:01:01]} 5. h4 {[%emt 0:00:04]} Nf6 {[%emt 0:03:38]} 6. f3 {[%emt 0:01:
28]} b5 {[%emt 0:02:41]} 7. Qd2 {[%emt 0:00:26]} h5 {[%emt 0:05:18]} 8. Nh3 {
[%emt 0:00:21]} Nbd7 {[%emt 0:00:20]} 9. O-O-O {[%emt 0:02:43]} Nb6 {[%emt 0:
03:52]} 10. a3 {[%emt 0:01:35]} c6 {[%emt 0:03:11]} 11. Ng5 {[%emt 0:07:16]}
O-O $146 {[%emt 0:06:06]} (11... d5 12. e5 Nh7 13. Nh3 Nf8 14. Nf2 Nc4 15. Bxc4
bxc4 16. Ne2 Rb8 17. g4 Qb6 18. c3 Ne6 19. Nf4 Bh6 20. Ng2 Bf8 21. Nf4 Nd8 22.
Qc2 Be6 23. Rde1 Bh6 24. Ng2 Bxe3+ 25. Nxe3 c5 26. Rd1 cxd4 27. cxd4 Nc6 28.
Qc3 Qa7 29. b4 a5 30. Nc2 axb4 31. axb4 Nxe5 32. dxe5 Qxf2 33. Qe3 Qxe3+ 34.
Nxe3 Rxb4 35. Nxd5 Bxd5 36. Rxd5 e6 37. Rc5 Kf8 38. Kc2 Kg7 39. Kc3 Rb3+ 40.
Kd2 Rxf3 41. Rxc4 {Rodshtein,T (2207)-Melkumyan,H (2653) Douglas 2016 0-1}) 12.
g4 {[%emt 0:04:04]} hxg4 {[%emt 0:06:33]} 13. h5 {[%emt 0:03:29]} Nxh5 {
[%emt 0:04:22]} 14. fxg4 {[%emt 0:02:27]} Bxg4 {[%emt 0:01:33]} 15. Be2 {
[%emt 0:00:13]} Nc4 {[%emt 0:06:52]} 16. Bxc4 {[%emt 0:00:22]} bxc4 {[%emt 0:
00:08]} 17. Rdg1 {[%emt 0:00:05]} Qd7 {[%emt 0:04:49]} 18. Qg2 {[%emt 0:01:51]}
f5 {[%emt 0:07:37]} 19. exf5 {[%emt 0:01:40]} Bxf5 {[%emt 0:15:22]} 20. Nf3 {
[%emt 0:08:54]} Qe6 {[%emt 0:07:31]} 21. Bd2 {[%emt 0:00:43] It seems that
White has excellent winning chances: He is down two pawns, but the threats on
the kingside seem to be insurmountable. Smirin turns that on its head.} Be4 {
[%emt 0:02:44]} 22. Nxe4 {[%emt 0:02:12]} Qxe4 {[%emt 0:00:09]} 23. Rxh5 {
[%emt 0:13:09]} Rxf3 {[%emt 0:00:31]} 24. Rg5 {[%emt 0:00:18]} Raf8 $1 {
[%emt 0:03:19] It was mandatory to have found this move before embarking on
Be4. It seems that Rxg6 is decisive, but Black has an ace up his sleeve.} 25.
Rxg6 {[%emt 0:01:23]} Rf1+ {[%emt 0:00:33]} 26. Rxf1 {[%emt 0:00:05]} Rxf1+ {
[%emt 0:00:09]} 27. Qxf1 {[%emt 0:00:02]} Qxg6 {[%emt 0:00:06]} 28. Qxc4+ {
[%emt 0:00:03]} d5 {[%emt 0:00:18]} 29. Qf1 {[%emt 0:00:02]} Bxd4 {[%emt 0:00:
44]} 30. Bc3 {[%emt 0:16:35]} Qg1 {[%emt 0:02:10]} 31. Qxg1+ {[%emt 0:00:09]}
Bxg1 {[%emt 0:00:02]} 32. Kd2 {[%emt 0:01:12]} Kf7 {[%emt 0:00:51]} 33. Kd3 {
[%emt 0:01:20]} Ke6 {[%emt 0:01:12]} 34. Bb4 {[%emt 0:04:41]} Kf6 {[%emt 0:07:
13]} 35. a4 {[%emt 0:08:52]} e5 {[%emt 0:01:44]} 36. Bf8 {[%emt 0:00:08]} e4+ {
[%emt 0:00:31]} 37. Ke2 {[%emt 0:00:56]} d4 {[%emt 0:02:44]} 38. Bd6 {[%emt 0:
00:56]} Be3 {[%emt 0:06:09]} 39. c3 {[%emt 0:03:40]} Bc1 {[%emt 0:00:06]} 40.
cxd4 {[%emt 0:00:00]} Bxb2 {[%emt 0:00:05]} 41. Ke3 {[%emt 0:04:43]} Ke6 {
[%emt 0:00:22]} 42. Bc5 {[%emt 0:00:15]} Kd5 {[%emt 0:00:03]} 43. Bb6 {[%emt 0:
01:24]} Bc1+ {[%emt 0:00:12]} 44. Ke2 {[%emt 0:00:04]} Kc4 {[%emt 0:00:05]} 45.
a5 {[%emt 0:00:37]} e3 {[%emt 0:04:39]} 46. Ba7 {[%emt 0:03:28]} Bd2 {[%emt 0:
01:07]} 47. Bb6 {[%emt 0:05:50]} Kb5 {[%emt 0:01:05]} 48. d5 {[%emt 0:04:41]}
cxd5 {[%emt 0:01:02]} 49. Kd3 {[%emt 0:00:03]} Bxa5 {[%emt 0:02:38]} 50. Bxe3 {
[%emt 0:00:03]} Bb6 {[%emt 0:00:04]} 51. Bc1 {[%emt 0:00:07]} a5 {[%emt 0:00:
22]} 52. Bb2 {[%emt 0:01:02]} a4 {[%emt 0:00:13]} 53. Kc3 {[%emt 0:00:10]} d4+
{[%emt 0:00:56]} 54. Kd3 {[%emt 0:00:33]} Kb4 {[%emt 0:00:03]} 55. Bc1 {
[%emt 0:00:10]} Kb3 {[%emt 0:00:15]} 0-1